[Event "FIDE World Cadets GU12 2022"]
[Site "Batumi"]
[Date "2022.09.19"]
[Round "4.1"]
[White "Kaliakhmet, Elnaz"]
[Black "Aydogan, Arya"]
[Result "1/2-1/2"]
[ECO "D31"]
[WhiteElo "1864"]
[BlackElo "1489"]
[Annotator "NA COMBH"]
[PlyCount "118"]
[EventDate "2022.09.16"]
[EventType "swiss"]
[EventCountry "GEO"]
[SourceTitle "playchess.com"]
[Source "ChessBase"]
[SourceQuality "1"]
[TimeControl "5400+30"]

1. d4 d5 2. c4 e6 3. Nf3 a6 4. cxd5 exd5 5. Nc3 c6 6. e4 dxe4 7. Ng5 h6 8. Ngxe4 Be6 9. Be2 Be7 10. O-O Nf6 11. Bf3 Nbd7 12. Bf4 O-O 13. Qd2 Nxe4 14. Bxe4 Nf6 15. Bc2 c5 16. Ne2 Bc4 17. Rfd1 Bxe2 18. Qxe2 cxd4 19. Be5 Rc8 20. Bxd4 Qc7 21. Rac1 Kh8 22. h3 Rfe8 23. Qf3 Qc6 24. Qf4 Qb5 25. Bc3 Red8 26. Re1 Bd6 27. Qf3 Qd5 28. Be4 Nxe4 29. Rxe4 Bf8 30. Qe2 b5 31. a3 Qd3 32. Qe1 f6 33. Re3 Qd5 34. Re6 Rd6 35. Re8 Rxe8 36. Qxe8 Rd8 37. Qe3 Bc5 38. Qf4 Bd6 39. Qg4 Be5 40. Bxe5 Qxe5 41. Qb4 Qd4 42. Qb3 Qd5 43. Qc3 Qd2 44. Qc7 Rd7 45. Qc8+ Rd8 46. Qc7 Rd7 47. Qc6 Rd6 48. Qe8+ Kh7 49. Qe4+ Kh8 50. Qe8+ Kh7 51. Rc8 Qf4 52. Qg8+ Kg6 53. Qe8+ Kh7 54. Qh8+ Kg6 55. Qe8+ Kh7 56. Qg8+ Kg6 57. Qe8+ Kh7 58. Qh8+ Kg6 59. Qe8+ Kh7 1/2-1/2

[Event "FIDE World Cadets GU12 2022"]
[Site "Batumi"]
[Date "2022.09.19"]
[Round "4.2"]
[White "Mgeladze, Kesaria"]
[Black "Belaya, Liliya"]
[Result "1-0"]
[ECO "C45"]
[WhiteElo "1771"]
[BlackElo "1266"]
[Annotator "NA COMBH"]
[PlyCount "73"]
[EventDate "2022.09.16"]
[EventType "swiss"]
[EventCountry "GEO"]
[SourceTitle "playchess.com"]
[Source "ChessBase"]
[SourceQuality "1"]
[TimeControl "5400+30"]

1. e4 {[%emt 0:01:00]} e5 {[%emt 0:01:00]} 2. Nf3 {[%emt 0:00:30]} Nc6 {[%emt 0:00:30]} 3. d4 {[%emt 0:01:30]} exd4 {[%emt 0:00:00]} 4. Nxd4 {[%emt 0:00:30]} Bc5 {[%emt 0:00:00]} 5. Nb3 {[%emt 0:00:30]} Bb6 {[%emt 0:00:00]} 6. Qe2 {[%emt 0:02:30]} d6 {[%emt 0:00:00]} 7. Be3 {[%emt 0:01:30]} Bxe3 {[%emt 0:00:30]} 8. Qxe3 {[%emt 0:00:30]} Nf6 {[%emt 0:00:30]} 9. Nc3 {[%emt 0:01:30]} O-O {[%emt 0:01:30]} 10. O-O-O {[%emt 0:00:30]} Re8 {[%emt 0:08:30]} 11. f3 {[%emt 0:01:30]} Ne5 {[%emt 0:08:30]} 12. h3 {[%emt 0:05:30]} c6 {[%emt 0:04:30]} 13. Qd2 {[%emt 0:15:30]} b5 {[%emt 0:06:30]} 14. Qxd6 {[%emt 0:02:30]} Qb6 {[%emt 0:01:30]} 15. Qc5 {[%emt 0:10:30]} Qb7 {[%emt 0:01:30]} 16. Be2 {[%emt 0:15:30]} a5 {[%emt 0:01:30]} 17. a4 {[%emt 0:03:30]} Ned7 {[%emt 0:06:30]} 18. Qf2 {[%emt 0:01:30]} bxa4 {[%emt 0:03:30]} 19. Nxa4 {[%emt 0:00:30]} Qb4 {[%emt 0:05:30]} 20. Rd4 {[%emt 0:03:30]} Qb7 {[%emt 0:00:30]} 21. g4 {[%emt 0:02:30]} Nb6 {[%emt 0:00:30]} 22. Nbc5 {[%emt 0:02:30]} Qc7 {[%emt 0:00:30]} 23. Qh2 {[%emt 0:01:30]} Qa7 {[%emt 0:00:30]} 24. Rhd1 {[%emt 0:01:30]} Nxa4 {[%emt 0:00:30]} 25. Nxa4 {[%emt 0:00:30]} Bd7 {[%emt 0:00:30]} 26. g5 {[%emt 0:00:30]} c5 {[%emt 0:04:30]} 27. Nxc5 {[%emt 0:02:30]} Qxc5 {[%emt 0:01:30]} 28. gxf6 {[%emt 0:00:00]} Rec8 {[%emt 0:02:30]} 29. Bc4 {[%emt 0:02:00]} Be8 {[%emt 0:04:30]} 30. Qg3 {[%emt 0:05:07]} g6 {[%emt 0:00:30]} 31. Qh4 {[%emt 0:02:39]} h5 {[%emt 0:00:30]} 32. Rg1 {[%emt 0:00:22]} Bb5 {[%emt 0:07:30]} 33. Rxg6+ {[%emt 0:00:50]} Kf8 {[%emt 0:03:30]} 34. Rg8+ {[%emt 0:00:30]} Kxg8 {[%emt 0:00:30]} 35. Qg3+ {[%emt 0:00:00]} Kf8 {[%emt 0:00:30]} 36. Qg7+ {[%emt 0:00:14]} Ke8 {[%emt 0:00:30]} 37. Qxf7# {[%emt 0:00:30]} 1-0

[Event "FIDE World Cadets GU12 2022"]
[Site "Batumi"]
[Date "2022.09.19"]
[Round "4.3"]
[White "Shubhi Gupta"]
[Black "Yousefian, Maedeh"]
[Result "1-0"]
[ECO "C14"]
[WhiteElo "1733"]
[BlackElo "1765"]
[Annotator "NA COMBH"]
[PlyCount "77"]
[EventDate "2022.09.16"]
[EventType "swiss"]
[EventCountry "GEO"]
[SourceTitle "playchess.com"]
[Source "ChessBase"]
[SourceQuality "1"]
[TimeControl "5400+30"]

1. d4 {[%emt 0:01:00]} Nf6 {[%emt 0:01:00]} 2. Nf3 {[%emt 0:00:30]} e6 {[%emt 0:00:00]} 3. Bg5 {[%emt 0:00:30]} d5 {[%emt 0:00:00]} 4. Nc3 {[%emt 0:03:30]} Be7 {[%emt 0:01:30]} 5. Bxf6 {[%emt 0:01:30]} Bxf6 {[%emt 0:00:30]} 6. e4 {[%emt 0:00:30]} O-O {[%emt 0:03:30]} 7. Qd2 {[%emt 0:03:30]} c6 {[%emt 0:07:30]} 8. e5 {[%emt 0:06:30]} Be7 {[%emt 0:00:30]} 9. Ne2 {[%emt 0:01:30]} c5 {[%emt 0:04:30]} 10. c3 {[%emt 0:01:30]} Nd7 {[%emt 0:07:30]} 11. g3 {[%emt 0:11:30]} a6 {[%emt 0:16:30]} 12. h4 {[%emt 0:05:30]} b5 {[%emt 0:02:30]} 13. Nf4 {[%emt 0:04:30]} Qb6 {[%emt 0:03:30]} 14. Bd3 {[%emt 0:02:30]} Re8 {[%emt 0:12:30]} 15. Qe2 {[%emt 0:08:30]} Nf8 {[%emt 0:03:30]} 16. Ng5 {[%emt 0:02:30]} g6 {[%emt 0:10:30]} 17. Qg4 {[%emt 0:11:30]} Bxg5 {[%emt 0:06:34]} 18. Qxg5 {[%emt 0:00:30]} Qd8 {[%emt 0:01:17]} 19. Qh6 {[%emt 0:05:30]} f5 {[%emt 0:04:09]} 20. g4 {[%emt 0:04:30]} Ra7 {[%emt 0:05:28]} 21. Rg1 {[%emt 0:04:37]} cxd4 {[%emt 0:03:53]} 22. cxd4 {[%emt 0:03:06]} Rg7 {[%emt 0:01:06]} 23. gxf5 {[%emt 0:01:53]} exf5 {[%emt 0:00:36]} 24. Nh5 {[%emt 0:00:46]} Rf7 {[%emt 0:01:34]} 25. O-O-O {[%emt 0:00:59]} Kh8 {[%emt 0:01:33]} 26. Nf6 {[%emt 0:00:42]} Ree7 {[%emt 0:01:01]} 27. h5 {[%emt 0:00:42]} Rg7 {[%emt 0:00:12]} 28. hxg6 {[%emt 0:01:31]} Nxg6 {[%emt 0:00:49]} 29. Rh1 {[%emt 0:00:58]} Nf8 {[%emt 0:00:39]} 30. Rdg1 {[%emt 0:00:42]} Qc7+ {[%emt 0:00:32]} 31. Kb1 {[%emt 0:00:30]} Rxg1+ {[%emt 0:00:25]} 32. Rxg1 {[%emt 0:00:00]} Rg7 {[%emt 0:00:30]} 33. Rc1 {[%emt 0:00:18]} Qd8 {[%emt 0:00:30]} 34. Qh5 {[%emt 0:03:51]} Be6 {[%emt 0:00:40]} 35. Bxf5 {[%emt 0:00:00]} Bg8 {[%emt 0:00:29]} 36. Rc8 {[%emt 0:01:15]} Qe7 {[%emt 0:00:30]} 37. Qe8 {[%emt 0:00:43]} Qxe8 {[%emt 0:00:30]} 38. Rxe8 {[%emt 0:00:03]} Rf7 {[%emt 0:00:32]} 39. Be6 {[%emt 0:01:21]} 1-0

[Event "FIDE World Cadets GU12 2022"]
[Site "Batumi"]
[Date "2022.09.19"]
[Round "4.4"]
[White "Merkulova, Victoria"]
[Black "Huseynova, Lala"]
[Result "1-0"]
[ECO "B86"]
[WhiteElo "1715"]
[BlackElo "1702"]
[Annotator "NA COMBH"]
[PlyCount "92"]
[EventDate "2022.09.16"]
[EventType "swiss"]
[EventCountry "GEO"]
[SourceTitle "playchess.com"]
[Source "ChessBase"]
[SourceQuality "1"]
[TimeControl "5400+30"]

1. e4 {[%emt 0:01:00]} c5 {[%emt 0:01:00]} 2. Nf3 {[%emt 0:00:30]} d6 {[%emt 0:00:30]} 3. d4 {[%emt 0:00:30]} cxd4 {[%emt 0:00:30]} 4. Nxd4 {[%emt 0:00:00]} Nf6 {[%emt 0:00:30]} 5. Nc3 {[%emt 0:00:00]} a6 {[%emt 0:00:30]} 6. Bc4 {[%emt 0:00:00]} e6 {[%emt 0:01:30]} 7. Bb3 {[%emt 0:00:00]} Be7 {[%emt 0:01:30]} 8. O-O {[%emt 0:02:30]} Qc7 {[%emt 0:06:30]} 9. Qf3 {[%emt 0:02:30]} O-O {[%emt 0:05:30]} 10. Qg3 {[%emt 0:03:30]} Kh8 {[%emt 0:04:30]} 11. f4 {[%emt 0:05:30]} b5 {[%emt 0:07:30]} 12. e5 {[%emt 0:09:30]} dxe5 {[%emt 0:03:30]} 13. fxe5 {[%emt 0:00:30]} Bc5 {[%emt 0:02:30]} 14. Be3 {[%emt 0:02:30]} Nfd7 {[%emt 0:14:30]} 15. Ne4 {[%emt 0:05:30]} Bxd4 {[%emt 0:05:30]} 16. Bxd4 {[%emt 0:00:30]} Nc6 {[%emt 0:00:30]} 17. c3 {[%emt 0:05:30]} Ndxe5 {[%emt 0:22:30]} 18. Rae1 {[%emt 0:06:30]} f6 {[%emt 0:05:46]} 19. Nc5 {[%emt 0:18:30]} Qe7 {[%emt 0:04:04]} 20. Qh4 {[%emt 0:02:30]} Bd7 {[%emt 0:06:57]} 21. Bc2 {[%emt 0:03:30]} g6 {[%emt 0:01:05]} 22. Ne4 {[%emt 0:05:30]} Be8 {[%emt 0:02:24]} 23. Bc5 {[%emt 0:00:30]} Qg7 {[%emt 0:01:40]} 24. Bxf8 {[%emt 0:00:30]} Qxf8 {[%emt 0:00:30]} 25. Nxf6 {[%emt 0:00:30]} Qe7 {[%emt 0:00:22]} 26. Qh6 {[%emt 0:00:30]} Bd7 {[%emt 0:00:54]} 27. Nxd7 {[%emt 0:01:30]} Nxd7 {[%emt 0:00:30]} 28. Bxg6 {[%emt 0:00:30]} Nde5 {[%emt 0:00:26]} 29. Be4 {[%emt 0:00:30]} Ng4 {[%emt 0:00:44]} 30. Qf4 {[%emt 0:00:30]} Qc5+ {[%emt 0:00:39]} 31. Kh1 {[%emt 0:00:30]} Rg8 {[%emt 0:00:30]} 32. Bxc6 {[%emt 0:00:30]} Qxc6 {[%emt 0:00:00]} 33. Qe4 {[%emt 0:00:30]} Qc7 {[%emt 0:00:00]} 34. Rf4 {[%emt 0:01:30]} Qg7 {[%emt 0:00:15]} 35. h3 {[%emt 0:00:30]} Nf6 {[%emt 0:00:37]} 36. Qf3 {[%emt 0:00:30]} Nd5 {[%emt 0:01:32]} 37. Rg4 {[%emt 0:00:30]} Qh6 {[%emt 0:00:30]} 38. Rxg8+ {[%emt 0:00:30]} Kxg8 {[%emt 0:00:00]} 39. Qg4+ {[%emt 0:00:30]} Kf7 {[%emt 0:00:23]} 40. Rf1+ {[%emt 0:00:30]} Ke7 {[%emt 0:00:30]} 41. Qg8 {[%emt 0:00:00]} Qh5 {[%emt 0:00:00]} 42. Qf8+ {[%emt 0:00:00]} Kd7 {[%emt 0:00:23]} 43. Rf7+ {[%emt 0:00:30]} Kc6 {[%emt 0:00:00]} 44. Qe8+ {[%emt 0:00:30]} Kb6 {[%emt 0:00:11]} 45. Qxe6+ {[%emt 0:00:30]} Kc5 {[%emt 0:00:30]} 46. Rc7+ {[%emt 0:00:00]} Nxc7 {[%emt 0:00:26]} 1-0

[Event "FIDE World Cadets GU12 2022"]
[Site "Batumi"]
[Date "2022.09.19"]
[Round "4.5"]
[White "Abramkina, Veranika"]
[Black "Maklakova, Naomi"]
[Result "0-1"]
[ECO "D36"]
[WhiteElo "1445"]
[BlackElo "1635"]
[Annotator "NA COMBH"]
[PlyCount "172"]
[EventDate "2022.09.16"]
[EventType "swiss"]
[EventCountry "GEO"]
[SourceTitle "playchess.com"]
[Source "ChessBase"]
[SourceQuality "1"]
[TimeControl "5400+30"]

1. d4 d5 2. c4 e6 3. Nc3 c6 4. cxd5 exd5 5. Qc2 Nf6 6. Bg5 Be7 7. e3 a5 8. Bd3 Na6 9. a3 Nc7 10. Nf3 Ne6 11. Bh4 h5 12. Rb1 Nd7 13. Bxe7 Qxe7 14. b4 Nf4 15. O-O Nxd3 16. Qxd3 Nf6 17. Ne5 O-O 18. b5 Qxa3 19. Nxd5 Qxd3 20. Ne7+ Kh7 21. Nxd3 a4 22. bxc6 bxc6 23. Nxc6 Ba6 24. Rfd1 Ne4 25. Rbc1 a3 26. Nc5 Nxc5 27. Rxc5 Be2 28. Ra1 Ra4 29. d5 a2 30. d6 Bg4 31. f3 Bd7 32. Rxh5+ Kg6 33. Rc5 Kf6 34. e4 Ke6 35. Ne5 Rb8 36. Nd3 Ra3 37. Nf4+ Kxd6 38. Rd5+ Ke7 39. Rdd1 Rb2 40. Nd3 Rb8 41. Nc5 Bb5 42. Kf2 Rc8 43. Rdc1 Rc6 44. e5 Ba4 45. Kg3 Bb5 46. Rc2 Bd3 47. Rcc1 Bb1 48. Kf2 Ra8 49. Nb3 Rb6 50. Nd4 Ra4 51. Ne2 Rb2 52. Kf1 Ke6 53. Nc3 Rc4 54. Kg1 Rd2 55. h3 Rd3 56. Nxa2 Bxa2 57. Rxc4 Bxc4 58. Ra4 Rc3 59. Ra5 Re3 60. Rc5 Bb3 61. Rb5 Bd5 62. Kf2 Rxe5 63. Rb2 Kf5 64. Rc2 Bb3 65. Rb2 Rb5 66. Rd2 Rc5 67. g4+ Kf4 68. Rd4+ Ke5 69. Rd3 Bd5 70. Kg3 Rb5 71. Re3+ Kd4 72. Re1 Rb3 73. Rd1+ Rd3 74. Rf1 Ke3 75. Ra1 Bxf3 76. Ra7 Bd5 77. Re7+ Kd4+ 78. Kh2 Be6 79. Ra7 Ke4 80. Ra1 Kf4 81. Rf1+ Kg5 82. Rf2 Kh4 83. Kg2 Rxh3 84. Rb2 Rg3+ 85. Kh2 Rxg4 86. Rb5 Ra4 0-1

[Event "FIDE World Cadets GU12 2022"]
[Site "Batumi"]
[Date "2022.09.19"]
[Round "4.6"]
[White "Altynbek, Aiaru"]
[Black "Gan, Emily Cathay"]
[Result "1-0"]
[ECO "E83"]
[WhiteElo "1373"]
[BlackElo "1550"]
[Annotator "NA COMBH"]
[PlyCount "79"]
[EventDate "2022.09.16"]
[EventType "swiss"]
[EventCountry "GEO"]
[SourceTitle "playchess.com"]
[Source "ChessBase"]
[SourceQuality "1"]
[TimeControl "5400+30"]

1. d4 {[%emt 0:01:00]} Nf6 {[%emt 0:01:00]} 2. c4 {[%emt 0:00:30]} g6 {[%emt 0:00:30]} 3. Nc3 {[%emt 0:00:30]} Bg7 {[%emt 0:00:00]} 4. e4 {[%emt 0:00:30]} d6 {[%emt 0:00:00]} 5. f3 {[%emt 0:00:30]} O-O {[%emt 0:01:30]} 6. Be3 {[%emt 0:00:30]} Nc6 {[%emt 0:00:30]} 7. Nge2 {[%emt 0:00:30]} Ne8 {[%emt 0:06:30]} 8. g4 {[%emt 0:08:30]} e6 {[%emt 0:05:30]} 9. Qd2 {[%emt 0:02:30]} Qh4+ {[%emt 0:08:30]} 10. Ng3 {[%emt 0:11:30]} Qe7 {[%emt 0:09:30]} 11. O-O-O {[%emt 0:15:30]} b6 {[%emt 0:06:30]} 12. h4 {[%emt 0:01:30]} Qd7 {[%emt 0:02:30]} 13. h5 {[%emt 0:02:30]} e5 {[%emt 0:05:30]} 14. d5 {[%emt 0:12:30]} Nd4 {[%emt 0:00:30]} 15. Bg2 {[%emt 0:06:30]} c5 {[%emt 0:01:30]} 16. dxc6 {[%emt 0:06:30]} Qxc6 {[%emt 0:01:30]} 17. Nd5 {[%emt 0:00:30]} Qxc4+ {[%emt 0:03:30]} 18. Kb1 {[%emt 0:00:30]} f6 {[%emt 0:01:30]} 19. Bf1 {[%emt 0:02:30]} Qa4 {[%emt 0:01:30]} 20. b3 {[%emt 0:02:30]} Qd7 {[%emt 0:03:30]} 21. Bxd4 {[%emt 0:01:30]} exd4 {[%emt 0:00:30]} 22. Bc4 {[%emt 0:00:30]} Rf7 {[%emt 0:06:30]} 23. hxg6 {[%emt 0:01:30]} hxg6 {[%emt 0:00:30]} 24. Nf4 {[%emt 0:00:30]} b5 {[%emt 0:00:30]} 25. Bxf7+ {[%emt 0:00:30]} Qxf7 {[%emt 0:00:30]} 26. Qh2 {[%emt 0:00:30]} Kf8 {[%emt 0:03:30]} 27. Qh7 {[%emt 0:01:30]} Ke7 {[%emt 0:00:30]} 28. Nxg6+ {[%emt 0:00:30]} Kd8 {[%emt 0:01:30]} 29. Rxd4 {[%emt 0:00:30]} Be6 {[%emt 0:00:30]} 30. Rd3 {[%emt 0:03:19]} f5 {[%emt 0:01:30]} 31. gxf5 {[%emt 0:02:29]} Bc4 {[%emt 0:01:30]} 32. Re3 {[%emt 0:04:31]} Rc8 {[%emt 0:00:30]} 33. e5 {[%emt 0:01:03]} dxe5 {[%emt 0:01:30]} 34. Rd1+ {[%emt 0:00:50]} Kc7 {[%emt 0:01:30]} 35. Nxe5 {[%emt 0:01:25]} Qf8 {[%emt 0:04:30]} 36. Nh5 {[%emt 0:02:19]} Kb7 {[%emt 0:07:59]} 37. Nxg7 {[%emt 0:00:41]} Nxg7 {[%emt 0:00:57]} 38. bxc4 {[%emt 0:01:15]} bxc4 {[%emt 0:00:45]} 39. Qxg7+ {[%emt 0:00:39]} Qxg7 {[%emt 0:00:34]} 40. Rd7+ {[%emt 0:00:05]} 1-0

[Event "FIDE World Cadets GU12 2022"]
[Site "Batumi"]
[Date "2022.09.19"]
[Round "4.8"]
[White "Semenova, Vasilisa"]
[Black "Ismayilova, Khanim"]
[Result "0-1"]
[ECO "D36"]
[WhiteElo "1332"]
[BlackElo "1901"]
[Annotator "TA"]
[PlyCount "130"]
[EventDate "2022.09.16"]
[EventType "swiss"]
[EventCountry "GEO"]
[SourceTitle "playchess.com"]
[Source "ChessBase"]
[SourceQuality "1"]
[TimeControl "5400+30"]

{[%evp 21,129,10,16,-8,28,23,11,10,3,21,58,33,64,60,52,49,132,24,23,-27,-12,-122,-109,-114,-125,-128,-127,-124,-127,-129,-104,-139,-162,-151,-151,-151,-145,-232,-221,-218,-136,-200,-210,-249,-219,-1489,-1471,-1352,-695,-641,0,-579,-569,-565,-564,-548,-545,-510,-511,-678,-636,-637,-625,-552,-565,-1134,-1132,-1989,-1933,-1828,-1856,-3012,-2696,-29975,-29978,-29978,-29979,-29983,-29984,-29984,-29974,-29979,-29973,-29982,-29983,-29984,-29985,-29985,-29986,-29987,-29987,-29987,-29988,-29988,-29989,-29990,-29991,-29991,-29992,-29993,-29994,-29994,-29995,-29996,-29997,-29997,-29998,-29998,-29999,-29999]} 1. d4 {[%emt 0:01:00]} d5 {[%emt 0:01:00]} 2. c4 {[%emt 0:00:30]} e6 {[%emt 0:00:30]} 3. Nc3 {[%emt 0:00:30]} Nf6 {[%emt 0:00:30]} 4. cxd5 {[%emt 0:00:30]} exd5 {[%emt 0:00:30]} 5. Bg5 {[%emt 0:00:30]} Be7 {[%emt 0:00:00]} 6. e3 {[%emt 0:00:00]} c6 {[%emt 0:00:00]} 7. Bd3 {[%emt 0:00:00]} O-O {[%emt 0:00:30]} 8. Nge2 {[%emt 0:00:00]} Nbd7 {[%emt 0:01:30][%cal Bb8d7,Bd7f8,Bf8e6][%mdl 32]} 9. O-O {[%emt 0:00:00]} Re8 {[%emt 0:03:30]} 10. Qc2 {[%emt 0:00:00]} Nf8 {[%emt 0:06:30]} 11. f3 {[%emt 0:00:00]} g6 $1 {[%emt 0:02:30][%mdl 4] is more profitable than 11...Be6 at the moment.} 12. h3 {[%emt 0:01:30] D36: Queen's Gambit Declined: Exchange Variation: Main line (5 Bg5 c6 6 Qc2).} Nh5 {[%emt 0:03:30]} (12... Ne6 $5 {[%cal Re6g5]} 13. Bh6 Bd6 $11) 13. Bxe7 {[%emt 0:00:30] [#]} Rxe7 $146 {[%emt 0:05:30]} ({Predecessor:} 13... Qxe7 14. e4 Ne6 15. exd5 Nef4 16. Nxf4 Nxf4 17. Rae1 Qxe1 18. Rxe1 Rxe1+ 19. Kf2 Rc1 {1-0 (29) De Santis,A (2278)-Margraf,C (1965) Bad Woerishofen 2009}) 14. e4 {[%emt 0:00:30] The position is equal.} Ne6 {[%emt 0:04:30]} 15. e5 {[%emt 0:09:30]} b5 {[%emt 0:05:30]} 16. Qd2 {[%emt 0:14:30] Black must now prevent f4.} Qb6 {[%emt 0:04:30]} 17. Qe3 {[%emt 0:00:30] And now g4 would win.} f5 {[%emt 0:09:30]} 18. f4 {[%emt 0:00:30][%cal Od3b5]} Nhg7 {[%emt 0:03:30] [#]} (18... Rf7 $14) 19. g4 {[%emt 0:05:30]} (19. Bxb5 $1 $16 {[%cal Oa1b1][%mdl 512] Strongly threatening Rab1!} Bb7 (19... Rf7 20. Ba4) 20. Ba4) 19... Nc7 {[%emt 0:02:30]} 20. gxf5 {[%emt 0:05:30]} (20. Qf3 $142) 20... Bxf5 $11 {[%emt 0:00:30]} 21. Rad1 {[%emt 0:09:30]} (21. a4 $11 {remains equal.}) 21... Rf8 {[%emt 0:02:30] Black continues to play with concentration.} 22. Kh2 {[%emt 0:03:30]} Bxd3 {[%emt 0:03:30]} 23. Rxd3 {[%emt 0:00:30]} Nce6 {[%emt 0:00:30]} 24. Ng3 {[%emt 0:00:30][%cal Of4f5] [#]} Ref7 $1 {[%emt 0:01:30] Inhibits f5.} 25. Nce2 {[%emt 0:00:30] [#]} g5 $1 {[%emt 0:03:30][%cal Rg5f4] Black is more active.} 26. f5 {[%emt 0:03:30]} Nxf5 {[%emt 0:02:30]} 27. Nxf5 {[%emt 0:00:30]} Rxf5 {[%emt 0:00:30]} 28. Rxf5 {[%emt 0:00:30]} Rxf5 {[%emt 0:00:00]} 29. Ng3 {[%emt 0:00:00]} (29. Rc3 $17) 29... Rf4 $19 {[%emt 0:02:00][%cal Rf4d4]} 30. Ne2 {[%emt 0:09:00]} Rf8 {[%emt 0:04:30]} 31. Qg1 {[%emt 0:04:30]} (31. Ng3 $17) 31... Qc7 {[%emt 0:01:30]} 32. Qg4 {[%emt 0:04:30]} Qf7 {[%emt 0:00:30]} 33. Rg3 $2 {[%emt 0:00:30]} (33. Rc3) 33... h5 {[%emt 0:04:30]} 34. Qh4 {[%emt 0:03:30]} Qf2+ {[%emt 0:00:30]} 35. Kh1 {[%emt 0:03:30]} Qf7 $2 {[%emt 0:04:57]} (35... Qxe2 $19 36. Rxg5+ Kf7 37. Rf5+ Ke8 38. Rxf8+ Nxf8) 36. Rxg5+ $2 {[%emt 0:09:09][%mdl 8192]} (36. Kh2 $1 $11 {and White stays safe.}) 36... Nxg5 {[%emt 0:00:30]} 37. Qxg5+ {[%emt 0:00:30]} Qg7 {[%emt 0:00:30]} 38. Qxg7+ {[%emt 0:00:30]} Kxg7 {[%emt 0:00:30][%mdl 4096] Endgame KR-KN} 39. Kg2 {[%emt 0:00:00] Prevents Rf2+.} h4 {[%emt 0:00:00]} 40. Nc1 {[%emt 0:05:39]} Rf5 {[%emt 0:00:21]} 41. Ne2 {[%emt 0:00:29]} Kf7 {[%emt 0:00:44]} 42. Ng1 {[%emt 0:00:21]} c5 {[%emt 0:01:41][%cal Bc6c5,Bc5c4][%mdl 32]} 43. Nf3 {[%emt 0:01:58]} c4 {[%emt 0:02:34] Hoping for ...b4.} 44. a3 {[%emt 0:00:40]} Rf4 {[%emt 0:00:33]} 45. Kf2 {[%emt 0:00:26]} a5 {[%emt 0:00:16]} 46. Ke2 {[%emt 0:00:30]} b4 {[%emt 0:00:09][%cal Of4f3] ( -> ...Rxf3!)} 47. axb4 {[%emt 0:01:06]} axb4 {[%emt 0:00:30] Black mates.} 48. Ng5+ {[%emt 0:00:26]} Ke7 {[%emt 0:00:16]} 49. Ke3 {[%emt 0:00:53]} Rf1 {[%emt 0:00:12]} 50. Kd2 {[%emt 0:02:01]} Rf2+ {[%emt 0:01:44]} 51. Kc1 {[%emt 0:00:30]} Rf4 {[%emt 0:00:21]} 52. Kc2 {[%emt 0:01:14]} Rxd4 {[%emt 0:00:37]} 53. Nf3 {[%emt 0:00:30]} Rf4 {[%emt 0:00:30]} 54. Nd2 {[%emt 0:00:01]} Rf2 {[%emt 0:00:00]} 55. Kc1 {[%emt 0:00:33] [#]} Rxd2 $1 {[%emt 0:00:09]} 56. Kxd2 {[%emt 0:00:30] KP-KP} Ke6 {[%emt 0:00:00]} 57. Ke3 {[%emt 0:00:21]} Kxe5 {[%emt 0:00:00]} 58. Kf3 {[%emt 0:01:31]} c3 {[%emt 0:00:46]} 59. bxc3 {[%emt 0:00:30] K3P-KPP} b3 {[%emt 0:00:30]} 60. c4 {[%emt 0:00:30]} b2 {[%emt 0:00:30]} 61. cxd5 {[%emt 0:00:30]} b1=Q {[%emt 0:00:30]} 62. Kg2 {[%emt 0:00:00]} Kf4 {[%emt 0:00:00]} 63. Kh2 {[%emt 0:00:00]} Kf3 {[%emt 0:00:00]} 64. d6 {[%emt 0:00:19]} Qf1 {[%emt 0:00:00][%csl Gf3][%cal Rf1g2]} 65. d7 {[%emt 0:00:30]} Qg2# {[%emt 0:00:24] Weighted Error Value: White=0.67/Black=0.24 (precise)} 0-1

[Event "FIDE World Cadets GU12 2022"]
[Site "Batumi"]
[Date "2022.09.19"]
[Round "4.9"]
[White "Preobrazhenskaya, Diana"]
[Black "Hariharan, Shambavi"]
[Result "1-0"]
[ECO "B14"]
[WhiteElo "1994"]
[BlackElo "1465"]
[Annotator "NA RC"]
[PlyCount "97"]
[EventDate "2022.09.16"]
[EventType "swiss"]
[EventCountry "GEO"]
[SourceTitle "playchess.com"]
[Source "ChessBase"]
[SourceQuality "1"]
[TimeControl "5400+30"]

1. e4 {[%emt 0:01:00]} c6 {[%emt 0:01:00]} 2. Nf3 {[%emt 0:00:30]} d5 {[%emt 0:00:30]} 3. exd5 {[%emt 0:00:30]} cxd5 {[%emt 0:00:30]} 4. d4 {[%emt 0:00:30]} Nc6 {[%emt 0:00:30]} 5. c4 {[%emt 0:00:00]} e6 {[%emt 0:00:30]} 6. Nc3 {[%emt 0:05:00]} Nf6 {[%emt 0:00:30]} 7. c5 {[%emt 0:02:30]} g6 {[%emt 0:05:30]} 8. Bb5 {[%emt 0:01:30]} Bd7 {[%emt 0:02:30]} 9. Bf4 {[%emt 0:11:30]} Nh5 {[%emt 0:11:30]} 10. Bg5 {[%emt 0:13:30]} Be7 {[%emt 0:09:30]} 11. Bh6 {[%emt 0:01:30]} Bf8 {[%emt 0:17:30]} 12. Bxf8 {[%emt 0:02:30]} Kxf8 {[%emt 0:00:30]} 13. O-O {[%emt 0:06:30]} Kg7 {[%emt 0:00:30]} 14. Qd2 {[%emt 0:02:30]} Nf6 {[%emt 0:01:30]} 15. Bxc6 {[%emt 0:04:30]} Bxc6 {[%emt 0:00:30]} 16. b4 {[%emt 0:02:30]} a6 {[%emt 0:08:30]} 17. Ne5 {[%emt 0:09:30]} Nd7 {[%emt 0:04:30]} 18. f4 {[%emt 0:02:30]} h5 {[%emt 0:09:30]} 19. a4 {[%emt 0:04:30]} Nf6 {[%emt 0:04:30]} 20. b5 {[%emt 0:03:30]} Bd7 {[%emt 0:02:01]} 21. Qd3 {[%emt 0:07:56]} Qc7 {[%emt 0:06:11]} 22. Qf3 {[%emt 0:03:20]} Rhd8 {[%emt 0:06:21]} 23. h4 {[%emt 0:05:59]} Be8 {[%emt 0:03:23]} 24. Rfe1 {[%emt 0:02:00]} a5 {[%emt 0:03:31]} 25. b6 {[%emt 0:03:31]} Qc8 {[%emt 0:00:52]} 26. Qd3 {[%emt 0:00:51]} Rb8 {[%emt 0:00:34]} 27. Nb5 {[%emt 0:01:14]} Ra8 {[%emt 0:00:38]} 28. Nd6 {[%emt 0:00:59]} Qb8 {[%emt 0:00:00]} 29. f5 {[%emt 0:00:58]} exf5 {[%emt 0:00:27]} 30. Nxf5+ {[%emt 0:00:29]} Kh7 {[%emt 0:00:46]} 31. Nd6 {[%emt 0:01:12]} Kg7 {[%emt 0:00:30]} 32. Rf1 {[%emt 0:00:07]} Rxd6 {[%emt 0:00:36]} 33. cxd6 {[%emt 0:00:30]} Qxd6 {[%emt 0:00:30]} 34. Qb3 {[%emt 0:00:05]} Ne4 {[%emt 0:00:12]} 35. Rf4 {[%emt 0:01:23]} f6 {[%emt 0:00:30]} 36. Nd3 {[%emt 0:00:16]} Rc8 {[%emt 0:00:08]} 37. Qa3 {[%emt 0:01:31]} Qe6 {[%emt 0:00:30]} 38. Rc1 {[%emt 0:00:00]} Rxc1+ {[%emt 0:00:43]} 39. Qxc1 {[%emt 0:00:11]} Ng3 {[%emt 0:01:02]} 40. Kh2 {[%emt 0:00:30]} Ne2 {[%emt 0:00:03]} 41. Qc7+ {[%emt 0:00:41]} Kh6 {[%emt 0:00:30]} 42. Rf3 {[%emt 0:00:19]} Nxd4 {[%emt 0:00:23]} 43. Qf4+ {[%emt 0:00:08]} Kh7 {[%emt 0:01:06]} 44. Qxd4 {[%emt 0:00:30]} Qd6+ {[%emt 0:00:30]} 45. Qf4 {[%emt 0:00:30]} Qe6 {[%emt 0:00:00]} 46. Qxf6 {[%emt 0:00:07]} Qc8 {[%emt 0:00:05]} 47. Qe7+ {[%emt 0:00:30]} Kh6 {[%emt 0:00:03]} 48. Qf8+ {[%emt 0:00:11]} Kh7 {[%emt 0:00:30]} 49. Rf7+ {[%emt 0:00:00]} 1-0